Cogmind - Beta 15 @@@ ROGUE MODE // 2025.06.06 @ 11:45:49 Player: Nisakard Result: Destroyed by D-53 Grenadier with Mini Grenade Launcher Performance ------------- Evolutions (0) 0 Regions Visited (2) 400 Robots Destroyed (26) 130 Value Destroyed (559) 559 Prototype IDs (3) 60 Alien Tech Used (0) 0 Bonus (60) 60 TOTAL SCORE: 1209 Bonus ------- Follower Combat Kills 60 Cogmind --------- Core Integrity 0/250 Matter 300/300 Energy 160/160 System Corruption 0% Temperature Cool (6) Movement Core (500) Ox9 Location -10/Mines Parts ------- > --- POWER (1) -------- Light Nuclear Core > --- PROPULSION (2) --- (None) > --- UTILITY (2) ------ Large Storage Unit Thief Drone Bay (0/3) > --- WEAPON (2) ------- Small Laser > --- INVENTORY (15) --- Ion Engine Ion Engine Ion Engine Light Nuclear Core Light Treads Light Treads Improved Heat Sink Experimental Sensor Array Signal Interpreter Power Shielding Hacking Suite EM Pulse Gun Small Laser Grenade Launcher Datajack Peak State ------------ > --- POWER ------------ Light Nuclear Core > --- PROPULSION ------- Light Treads Wheel > --- UTILITY ---------- Large Storage Unit Thief Drone Bay > --- WEAPON ----------- Small Laser Light Assault Rifle > --- INVENTORY -------- Ion Engine Ion Engine Ion Engine Light Nuclear Core Light Treads Wheel Improved Heat Sink Signal Interpreter Power Shielding Hacking Suite EM Pulse Gun Small Laser Grenade Launcher Datajack [Rating: 17] Favorites ----------- Power Light Nuclear Core Engine Ion Engine Power Core Light Nuclear Core Propulsion Wheel Treads Light Treads Wheel Wheel Utility Large Storage Unit Device Thief Drone Bay Storage Large Storage Unit Protection Power Shielding Weapon Medium Laser Energy Gun Medium Laser Ballistic Gun Light Assault Rifle Build | -11 -10 -10 ------- Run | Yrd Mat Min Slots Evolved . | . . . Power . | . . . Propulsion . | . . . Utility . | . . . Weapon . | . . . Parts Attached 20 | 7 11 2 Power 4 | 1 3 . Engine 2 | 1 1 . Core 2 | . 2 . Reactor . | . . . Propulsion 5 | 2 2 1 Treads 2 | 1 1 . Leg . | . . . Wheel 3 | 1 1 1 Hover . | . . . Flight . | . . . Utility 6 | 2 3 1 Device 2 | 1 . 1 Storage 3 | 1 2 . Processor . | . . . Hackware . | . . . Protection 1 | . 1 . Artifact . | . . . Weapon 5 | 2 3 . Energy Gun 4 | 2 2 . Energy Cannon . | . . . Ballistic Gun 1 | . 1 . Ballistic Cannon . | . . . Launcher . | . . . Special Weapon . | . . . Impact Weapon . | . . . Slashing Weapon . | . . . Piercing Weapon . | . . . Special Melee Weapon . | . . . Unidentified Prototypes 1 | . . 1 Parts Lost 7 | . 4 3 Power . | . . . Propulsion 3 | . 1 2 Utility . | . . . Weapon 4 | . 3 1 Highest Loss Streak 3 | . 2 3 To Critical Strikes . | . . . Average Backups 10 | 2 9 14 Power 3 | . 2 4 Propulsion 2 | 1 2 2 Utility 2 | . 1 4 Weapon 2 | . 1 3 Tool/Special . | . . . Unused Backups 12 | . . 12 Power 3 | . . 3 Propulsion 1 | . . 1 Utility 4 | . . 4 Weapon 3 | . . 3 Tool/Special 1 | . . 1 Average Slot Usage (%) 98 | . 98 99 Engine 6 | . 8 . Core 7 | . 5 14 Treads 13 | . 13 12 Wheel 13 | . 13 14 Device 5 | . 3 11 Storage 13 | . 13 14 Protection 8 | . 10 2 Energy Gun 20 | . 22 14 Ballistic Gun 7 | . 5 14 Peak Build Rating 17 | 9 10 17 Average Rating 10 | 5 8 15 On Entrance 6 | . 9 10 Naked Turns . | . . . Heaviest Build 31 | 15 30 31 Greatest Support 20 | 20 20 20 Greatest Overweight (x) 10 | 1 2 10 Average Overweight (x) 1 | . 1 2 Largest Inventory Capacity 15 | 8 15 15 Average Capacity 12 | 6 12 15 Most Carried 15 | 5 13 15 Average Carried 10 | 2 9 14 Final Capacity 15 | 8 15 15 Final Carried 15 | 5 13 15 Class Distribution -------------------- 100% | Mutant Dominant Class ---------------- Mutant | -10/Materials Mutant | -10/Mines Resources | -11 -10 -10 ----------- Run | Yrd Mat Min Matter Collected 434 | 270 154 10 Remotely . | . . . Salvage Created 889 | 176 713 . Parts 48 | 9 39 . Haulers Intercepted 2 | . 2 . Recyclers Shooed 6 | 3 3 . Parts Field Recycled . | . . . Retrieved Matter . | . . . Parts Self-Destructed . | . . . Prevented . | . . . Kills | -11 -10 -10 ------- Run | Yrd Mat Min Combat Hostiles Destroyed 17 | . 17 . Guns 15 | . 15 . Classes Destroyed 7 | 2 5 . Tunneler 3 | 3 . . Hauler 2 | . 2 . Recycler 1 | 1 . . Operator 1 | . 1 . Watcher 2 | . 2 . Swarmer 6 | . 6 . Grunt 11 | . 11 . Best Kill Streak 3 | 3 3 . Combat Bots Only 3 | . 3 . Max Kills in Single Turn 1 | 1 1 . Gunslinging . | . . . Exploded . | . . . Melee . | . . . Uniques/NPCs Destroyed . | . . . Combat | -11 -10 -10 -------- Run | Yrd Mat Min Hostile Shots Fired 92 | . 82 10 Missed 29 | . 29 . Hits 63 | . 53 10 Projectile 63 | . 53 10 AOE 10 | . . 10 Damage Taken 1118 | . 726 392 Core 255 | . 144 111 Absorbed by Shields . | . . . Redirected to Shielding 18 | . 18 . Regen/Repaired (Parts) 281 | . 281 . Core Remaining (%) 100 | 100 . . Volleys Fired 96 | 12 82 2 Largest 2 | 2 2 1 Hottest 100 | 90 100 40 Shots Fired 184 | 24 158 2 Gun 184 | 24 158 2 Cannon . | . . . Launcher . | . . . Special . | . . . Kinetic 34 | . 34 . Thermal 124 | 12 110 2 Explosive . | . . . Electromagnetic 26 | 12 14 . Robot Hit Streak 13 | 12 13 1 Robot Miss Streak 5 | 1 5 1 Penetration Max . | . . . Secondary Targets 2 | . 2 . Max Gunslinging Chain 1 | . 1 . Shots Hit Robots 115 | 17 97 1 Core Hits 41 | 5 35 1 Critical Kills . | . . . Critical Parts Destroyed . | . . . Critical Strikes 5 | . 5 . Burn 5 | . 5 . Melee Attacks . | . . . Impact . | . . . Slashing . | . . . Piercing . | . . . Sneak Attacks . | . . . Combat Hostiles . | . . . Follow-up Attacks . | . . . Damage Inflicted 1534 | 218 1293 23 Guns 1395 | 218 1154 23 Cannons . | . . . Explosions 139 | . 139 . Melee . | . . . Ramming . | . . . Kinetic 164 | . 164 . Thermal 1015 | 113 879 23 Explosive 139 | . 139 . Electromagnetic 216 | 105 111 . Impact . | . . . Slashing . | . . . Piercing . | . . . Highest Corruption . | . . . Average Corruption . | . . . Corruption Purged . | . . . Corruption Blocked . | . . . Overload Shots . | . . . Overflow Damage 11 | . 11 . Projectiles . | . . . Explosions 11 | . 11 . Melee . | . . . Knockbacks . | . . . Impact . | . . . Kinetic . | . . . Secondary . | . . . Self-Inflicted Damage 133 | . 133 . Shots 2 | . 2 . Rammed . | . . . Targets Rammed . | . . . Kicked . | . . . Crushed . | . . . Highest Temperature 526 | 180 526 6 Average Temperature 97 | 62 103 4 Received Heat Transfer 261 | . 261 . Effects 11 | . 11 . Shutdowns 3 | . 3 . Energy Bleed 4 | . 4 . Interference 1 | . 1 . Damage (major) 3 | . 3 . Siege Activations . | . . . Martial Activations . | . . . Shielding Activations . | . . . Robots Disrupted . | . . . Combat Hostiles . | . . . Robots Corrupted . | . . . Combat Hostiles . | . . . Parts Fried . | . . . Impact Corruptions . | . . . Robots Melted 2 | . 2 . Combat Hostiles 2 | . 2 . Parts Melted 6 | . 6 . Heat Transferred 3190 | 333 2807 50 Parts Sabotaged . | . . . Parts Stolen . | . . . Parts Stripped . | . . . Power Chain Reactions . | . . . Alert | -11 -10 -10 ------- Run | Yrd Mat Min Maximum Alert Level . | . . . Low Security (%) 100 | 100 100 100 Level 1 . | . . . Level 2 . | . . . Level 3 . | . . . Level 4 . | . . . Level 5 . | . . . High Security . | . . . Max Security . | . . . Peak Influence 168 | 10 168 47 Initial 9 | . . 9 Average 34 | 1 46 5 Influence Increases 637 | 20 560 57 Destroy 0b10 Robot/C 380 | . 340 40 Destroy 0b10 Robot/NC 45 | 20 25 . Destroy Leader 98 | . 88 10 Allied During Kill 7 | . . 7 Successful Hack 16 | . 16 . Disable Machine 30 | . 30 . Destroy Structure 46 | . 46 . Lose Combat Pursuer 15 | . 15 . Influence Decreases 637 | 20 535 82 Entered New Map 16 | . . 16 Time Decay 535 | 20 449 66 Lost Part 20 | . 20 . Purge Threat 66 | . 66 . Squads Dispatched 4 | . 4 . Investigation 2 | . 2 . Extermination . | . . . Reinforcement 2 | . 2 . Assault . | . . . Garrison . | . . . Intercept . | . . . Searches Triggered . | . . . Construction Impeded . | . . . Haulers Reinforced . | . . . Active Scanning Responses . | . . . Cargo Convoy Interrupts . | . . . Stealth | -11 -10 -10 --------- Run | Yrd Mat Min Distress Signals 2 | . 2 . Communications Jammed . | . . . Distress Signals . | . . . Times Spotted 33 | . 29 4 Peak Tracking Total 3 | . 3 2 Tactical Retreats 1 | . 1 . Traps | -11 -10 -10 ------- Run | Yrd Mat Min Traps Triggered 1 | . 1 . Indirectly . | . . . Trap Hack Attempts . | . . . Triggered . | . . . Disarmed . | . . . Reprogrammed . | . . . Reused . | . . . Traps Extracted . | . . . Installed . | . . . Triggered . | . . . Machines | -11 -10 -10 ---------- Run | Yrd Mat Min Machines Disabled 3 | . 3 . Max in Single Turn 3 | . 3 . Machines Repaired . | . . . Machines Dismantled . | . . . Machines Sabotaged . | . . . Overloaded Fab Kills . | . . . Hacking | -11 -10 -10 --------- Run | Yrd Mat Min Machines Accessed 8 | . 7 1 Terminals 6 | . 6 . Fabricators . | . . . Repair Stations 1 | . 1 . Recycling Units . | . . . Scanalyzers . | . . . Garrison Access . | . . . Total Hacks 21 | . 20 1 Successful 10 | . 9 1 Failed 11 | . 11 . Catastrophic 2 | . 2 . Database Lockouts . | . . . Manual 6 | . 6 . Terminals 15 | . 15 . Fabricators . | . . . Repair Stations 5 | . 5 . Recycling Units . | . . . Scanalyzers . | . . . Garrison Access . | . . . Terminal Hacks 5 | . 4 1 Prototype ID Bank 1 | . 1 . Open Door 1 | . . 1 Branch Access Points 1 | . 1 . Unreport Threat 1 | . 1 . Zone Layout 1 | . 1 . Fabricator Hacks . | . . . Repair Station Hacks 4 | . 4 . Scan Component 2 | . 2 . Repair 2 | . 2 . Recycling Unit Hacks . | . . . Scanalyzer . | . . . Garrison Access Hacks . | . . . Unauthorized Hacks 1 | . 1 . Terminals 1 | . 1 . Assimilate 1 | . 1 . Fabricators . | . . . Repair Stations . | . . . Recycling Units . | . . . Scanalyzers . | . . . Garrison Access . | . . . Data Cores Recovered . | . . . Used . | . . . Hacking Detections 7 | . 7 . Full Trace Events 1 | . 1 . Feedback Events . | . . . Feedback Blocked . | . . . Robot Schematics Acquired . | . . . Robots Built . | . . . Authchips . | . . . Time . | . . . Total Robot Build Rating . | . . . Part Schematics Acquired . | . . . Parts Built . | . . . Authchips . | . . . Time . | . . . Total Part Build Rating . | . . . Parts Repaired 2 | . 2 . Time 52 | . 52 . Parts Recycled . | . . . Recycled Matter . | . . . Retrieved Matter . | . . . Retrieved Components . | . . . Parts Scanalyzed . | . . . Part Schematics Acquired . | . . . Parts Damaged . | . . . Bothacking | -11 -10 -10 ------------ Run | Yrd Mat Min Used RIF Installer . | . . . Robots Hacked . | . . . Non-combat . | . . . Combat . | . . . Robot Hacks Applied . | . . . Relay Couplers Released . | . . . Fabnet Peak Effective % . | . . . Robots Rewired . | . . . Allies Hacked . | . . . Hacks Repelled . | . . . Allies | -11 -10 -10 -------- Run | Yrd Mat Min Total Allies . | . . . Largest Group . | . . . Highest-Rated Group . | . . . Highest-Rated Ally . | . . . Total Orders . | . . . Ally Attacks 36 | . . 36 Total Damage 335 | . . 335 Kills 4 | . . 4 Allies Corrupted 1 | . . 1 Allies Melted . | . . . Intel | -11 -10 -10 ------- Run | Yrd Mat Min Active Infowar (turns) 399 | 23 376 . Terrain 399 | 23 376 . Robot Analysis Total . | . . . Derelict Logs Recovered 1 | . . 1 Drone Launches 7 | . . 7 Drone Recoveries 4 | . . 4 Exploration | -11 -10 -10 ------------- Run | Yrd Mat Min Turns Passed 2095 | 111 1463 521 Spaces Moved 1308 | 56 928 324 Core 6 | 5 . 1 Treads 7 | 3 4 . Legs . | . . . Wheels 1295 | 48 924 323 Hover . | . . . Flight . | . . . Fastest Speed 50 | 50 95 95 Average Speed 108 | 91 105 122 Slowest Speed 550 | 160 240 550 Overloaded Moves . | . . . Propulsion Burnouts . | . . . Robots Hopped . | . . . Potential Cave-ins . | . . . Cave-ins Triggered . | . . . Exploration Rate (%) 58 | 3 100 72 Regions Visited 2 Branch Regions 1 Pre-discovered Areas 1 | . . 1 Known Exits Taken 1 | . 1 . Unknown Exits Taken 1 | 1 . . Scrap Searched 1 | . . 1 Spaces Dug . | . . . Terrain Destroyed 50 | . 50 . Melee . | . . . Projectile . | . . . AOE 50 | . 50 . Terrain Rammed . | . . . Walls Destroyed . | . . . Machines Disabled . | . . . Actions | -11 -10 -10 --------- Run | Yrd Mat Min Total 1793 | 87 1262 444 Wait 340 | 8 218 114 Move 1306 | 55 927 324 Hop . | . . . Pick Up 24 | 5 17 2 Fast Attach 9 | 7 2 . Attach 4 | . 4 . Detach . | . . . Swap 9 | . 7 2 Drop 5 | . 5 . Fire 96 | 12 82 2 Melee . | . . . Ram . | . . . Kick . | . . . Crush . | . . . Escape Stasis . | . . . Rewire . | . . . Trap . | . . . Miscellaneous . | . . . Route ------- -11/Scrapyard -10/Materials (discovered 5 exits: *Mat x3 / *Min / [*Sub]) -10/Mines (discovered 3 exits: *Mat x2 / [*Exi]) History --------- Turn | Location | Event 17 | -11/Scrapyard | Discovered new exit (range 14) 112 | -11/Scrapyard | Entered Materials 130 | -10/Materials | Discovered new exit (range 14) 290 | -10/Materials | Discovered new exit (range 8) 290 | -10/Materials | Discovered new exit (range 13) 303 | -10/Materials | Build established: Mutant 451 | -10/Materials | Identified exit to Mines 561 | -10/Materials | Discovered new exit (range 8) 786 | -10/Materials | Discovered new exit (range 15) 990 | -10/Materials | Core integrity fell below 50% 1134 | -10/Materials | Repaired Lgt. Treads 1162 | -10/Materials | Repaired Lrg. Storage Unit 1575 | -10/Materials | Entered Mines 1586 | -10/Mines | Found the Drone Emporium 1661 | -10/Mines | Found Prototype Device 1665 | -10/Mines | Identified Thief Drone Bay 1703 | -10/Mines | Identified exit to Materials 1728 | -10/Mines | Found a damaged Exp. Sensor Array with a note attached 1731 | -10/Mines | Found Prototype Device 1739 | -10/Mines | Deemed a non-threat by the Exiles lab entrance 1740 | -10/Mines | Discovered new exit (range 5) 1765 | -10/Mines | Found a hidden stash of uninstalled traps 1768 | -10/Mines | Discovered exit to Materials (range 14) 1819 | -10/Mines | Learned location of Storage (-9) 2046 | -10/Mines | Assembled infested the area 2095 | -10/Mines | Core integrity fell below 20% 2096 | -10/Mines | Destroyed by D-53 Grenadier with Mini Grenade Launcher Last Messages --------------- 02086_ as-76918 destroyed. 02086_ HV Slug penetrates Wall. 02086_ K-01 Serf collects debris. 02087_ Wheel destroyed. 02088_ Wall collapses. 02090_ K-01 Serf collects debris. 02090_ U-05 Engineer builds a Wall. 02090_ Lgt. Assault Rifle destroyed. 02090_ K-01 Serf destroyed. 02092_ HV Slug penetrates Thief Drone. 02092_ HV Slug penetrates Wall. 02092_ T-07 Excavator destroyed. 02094_ Thief Drone released from Thief Drone Bay. 02095_ Wall collapses. 02095_ HV Slug penetrates Wall. 02095_ HV Slug penetrates as-26807. 02095_ as-26807 suffers critical hit (Destroy). 02095_ HV Slug penetrates Wall. 02095_ Thief Drone sneak attacks. Map ----- +----------------------------------------------------+ | ???????????# #### ###?????#########! ##????? | | ?????????## ## ##????????????# #?????? | | #??####?## #????????????# ##?????? | | ### ### ####????????????# ###??????? | | ##???????????????# #????????? | | ??# ##????????????????# ####?????? | | ??## #?????????????????# # ##????? | | ???# #??????###???????## #????? | | ???# ##??##### ######### #????? | | ???## #??## # #????? | | ????### ##??# ##????? | | ??????## ##???# #### ##?????? | | ???????## % ##????# #### #??## ##??????? | | ????????## ##?????# ##?# #???#### #???????? | | ?????????## #??????# ### #??????# #####???? | | ??????????## #??????# # ##?????# #???? | | ???????????# #??????## ## ##????# ### #???? | | ###????????# #???#???#### d ##???# #?# #???? | | ##???????# #?? ##?????# ##??# #?# #???? | | #####???# ## #??????# n #### ###a#???? | | #####% #??##### d ## #???? | | *== ## #?## ### ## #???? | | # ! #?#r ## ##?# ##a#???? | | # & ####??#k ##??#% ##n##??? | | ## & & ##?????# ##???#%%#; ;#??? | | & #??????## @ #????# k ;##?? | | ## #???????# #???# %%%% ##? | | ## #???????## #??##%%% #? | | ### ## #?????# ## #???# %%g #? | | #### ## ?? ####? #??## % #? | | ### ## ## ###????# #??## % # | | ## ## #? ######### #????????## #???###; | | #? #???????###???????????# #??????#; % | | # ######??#?????????????????????? ???????## | | ## #??????????????????????????????? ????????? < | | ### ###????????????????????????????????????????? | | #?# ##????????????????????????????????????????? | | ??### #????????????????????????????????????????? | | ???## ##?????????????????????????????????????????? | | ???# #??????????????????????????????????????????? | | ???# ##??????????????????????????????????????????? | | ???< #???????????????????????????????????????????? | | ??####???????????????????????????????????????????? | | ?????????????????????????????????????????????????? | | ?????????????????????????????????????????????????? | | ?????????????????????????????????????????????????? | | ?????????????????????????????????????????????????? | | | | | | | +----------------------------------------------------+ Best States ------------- Heat Dissipation 25 Energy Generation 14 Energy Capacity 250 Matter Stores 300 Matter Capacity 300 Sight Range 16 Terrain Scan Range 16 Terrain Scan Density 10 Power Shielding 33 Evasion (%) 44 Recoil Reduction 1 Item Schematics ----------------- None Robot Schematics ------------------ None Fabricated ------------ Nothing Repaired ---------- Lgt. Treads | 27% | -10/Materials Lrg. Storage Unit | 48% | -10/Materials Alien Tech Used ----------------- None Achievements -------------- None Challenges ------------ None Game ------ Seed SensorLobotomyChainsword Manual? 0 Play Time 00:16:16 Cumulative 18.7 hours Start 2025.06.06 @ 11:22:50 End 2025.06.06 @ 11:45:49 Sessions 1 Manual Loads 0 Difficulty Rogue Special Mode None Game No. 27 Rogue 27 Adventurer 0 Explorer 0 Win Type - Total 0 Types 0/0/0/0/0/0/0/0/0/0 Lore% 31 Gallery% 22 Achievement% 28 Wizard Run 0 Options --------- Layout 1 ASCII 0 Keyboard 0 Movement Numpad Keybinds 0 Fullscreen 2 Font 24/Smallcaps Map View 50x35 Zoom Use 0% Tactical HUD 1 Map Filters NONE Filters NONE Steam 1 RUN: 1187c305-828e-447b-b5bd-4afb9956a3d1